Cogmind - Beta 15 @@@ ROGUE MODE // 2025.05.06 @ 18:49:12 Player: deadnoob Result: Destroyed by H-55 Commando with Gauss Rifle Performance ------------- Evolutions (2) 1000 Regions Visited (11) 2200 Robots Destroyed (187) 935 Value Destroyed (6116) 6116 Prototype IDs (15) 300 Alien Tech Used (0) 0 Bonus (3089) 3089 TOTAL SCORE: 13640 Bonus ------- High Alert Combat Kills 637 Follower Combat Kills 263 Entered Garrisons 800 Used RIF Installer 1500 Friendly Fire -111 Cogmind --------- Core Integrity 0/550 Matter 22/300 Energy 150/150 System Corruption 2% Temperature Cool (0) Movement Treading (240) Ox1 Location -8/Garrison Parts ------- > --- POWER (1) -------- Micro Nuclear Core > --- PROPULSION (3) --- Light Treads Gravmag System > --- UTILITY (5) ------ Medium Storage Unit Advanced Visual Processing Unit Relay Coupler [NC] (26) Relay Coupler [Grunt] (7) Relay Coupler [Sentry] (8) > --- WEAPON (2) ------- Axe Power Sword > --- INVENTORY (10) --- Improved Sensor Array Improved Signal Interpreter Centrium Light Armor Plating Relay Coupler [NC] (29) Relay Coupler [Sentry] (21) Improved Trap Extractor (0/6) Scatter Rocket Array Improved Datajack Axe Peak State ------------ > --- POWER ------------ Cold Fusion Reactor > --- PROPULSION ------- Improved Gravmag System Cooled Gravmag System Cooled Gravmag System > --- UTILITY ---------- Advanced Heat Sink Advanced Visual Processing Unit Core Shielding Relay Coupler [NC] Relay Coupler [Sentry] > --- WEAPON ----------- Scatter Rocket Array Power Sword > --- INVENTORY -------- Centrium Light Armor Plating Relay Coupler [NC] Grenade Launcher Datajack [Rating: 51] Favorites ----------- Power Mini Fusion Reactor Engine Heavy Ion Engine Power Core Micro Nuclear Core Reactor Mini Fusion Reactor Propulsion Light Treads Treads Light Treads Leg Aluminum Leg Hover Unit Cooled Gravmag System Flight Unit Surge Thruster Utility Large Storage Unit Device Seismic Detector Storage Large Storage Unit Processor Advanced Visual Processing Unit Hackware Relay Coupler [NC] Protection Hardened Light Armor Plating Weapon Advanced Beam Cannon Energy Gun Small Laser Energy Cannon Advanced Beam Cannon Ballistic Gun Assault Rifle Ballistic Cannon Improved Light Cannon Launcher Heavy Missile Launcher Special Weapon Mining Laser Slashing Weapon Power Sword Special Melee Weapon Datajack Build | -11 -10 -10 -9 -9 -9 -8 -8 -8 -8 -8 -8 ------- Run | Yrd Mat Min Mat Sto Gar Mat Gar Mat Gar Mat Gar Slots Evolved 4 | . . . 2 . . 2 . . . . . Power . | . . . . . . . . . . . . Propulsion 1 | . . . . . . 1 . . . . . Utility 3 | . . . 2 . . 1 . . . . . Weapon . | . . . . . . . . . . . . Parts Attached 105 | 1 8 1 11 24 13 12 12 10 5 3 5 Power 9 | . 1 . 3 2 . . 1 1 1 . . Engine 4 | . 1 . 2 . . . 1 . . . . Core 3 | . . . 1 . . . . 1 1 . . Reactor 2 | . . . . 2 . . . . . . . Propulsion 24 | . 2 . 2 4 6 3 3 1 2 . 1 Treads 17 | . 2 . 2 4 4 3 1 . . . 1 Leg 1 | . . . . . . . 1 . . . . Wheel . | . . . . . . . . . . . . Hover 5 | . . . . . 2 . 1 . 2 . . Flight 1 | . . . . . . . . 1 . . . Utility 45 | 1 2 1 5 7 4 7 5 6 1 2 4 Device 16 | 1 . 1 1 4 2 1 3 . 1 2 . Storage 3 | . 2 . . . . . . 1 . . . Processor 2 | . . . . 1 . 1 . . . . . Hackware 11 | . . . . . . 3 2 2 . . 4 Protection 13 | . . . 4 2 2 2 . 3 . . . Artifact . | . . . . . . . . . . . . Weapon 27 | . 3 . 1 11 3 2 3 2 1 1 . Energy Gun . | . . . . . . . . . . . . Energy Cannon 6 | . . . . 4 2 . . . . . . Ballistic Gun 7 | . 2 . . 4 . . 1 . . . . Ballistic Cannon 4 | . . . 1 . . 2 1 . . . . Launcher 4 | . . . . 2 1 . . 1 . . . Special Weapon 1 | . 1 . . . . . . . . . . Impact Weapon . | . . . . . . . . . . . . Slashing Weapon 3 | . . . . . . . 1 . 1 1 . Piercing Weapon . | . . . . . . . . . . . . Special Melee Weapon 2 | . . . . 1 . . . 1 . . . Unidentified Prototypes 5 | . . . 2 3 . . . . . . . Parts Lost 29 | . 1 . 1 4 4 1 9 2 3 . 4 Power 3 | . . . . . . . 2 . . . 1 Propulsion 10 | . 1 . . 2 . . 3 . 2 . 2 Utility 12 | . . . 1 2 4 1 2 1 1 . . Weapon 4 | . . . . . . . 2 1 . . 1 Highest Loss Streak 6 | . 1 . 1 2 2 1 6 2 2 . 3 To Critical Strikes . | . . . . . . . . . . . . Average Backups 13 | 6 11 14 14 14 14 14 8 6 8 9 9 Power . | 1 . . . 1 1 1 . . . 1 . Propulsion 2 | 4 3 4 2 2 2 2 . . . . . Utility 4 | . 2 2 5 4 5 5 3 3 5 5 5 Weapon 4 | 1 5 7 5 4 4 4 2 1 2 2 3 Tool/Special . | . . . . . . . . . . . . Unused Backups 34 | . 8 . 7 8 3 . 2 . . 1 5 Power 1 | . 1 . . . . . . . . . . Propulsion 5 | . 4 . 1 . . . . . . . . Utility 14 | . 1 . 1 3 2 . 2 . . 1 4 Weapon 13 | . 2 . 5 5 . . . . . . 1 Tool/Special 1 | . . . . . 1 . . . . . . Average Slot Usage (%) 94 | . 99 99 87 95 94 98 93 96 84 97 92 Engine 4 | . 14 14 7 4 . . 1 . . . . Reactor 5 | . . . . 6 11 9 6 6 . . . Treads 18 | . 16 28 22 22 19 26 8 . . . 5 Hover 3 | . . . . . . . 11 27 22 27 15 Device 13 | . 14 13 11 18 16 5 5 1 1 15 6 Storage 10 | . 14 14 11 11 11 9 3 3 9 9 9 Processor 2 | . . . . . . 8 9 9 9 9 9 Hackware 3 | . . . . . . 11 13 22 12 9 20 Protection 9 | . . . 10 11 14 8 12 7 . . . Energy Cannon 8 | . . . . 14 20 3 . . . . . Ballistic Gun 4 | . 23 25 . . . . 3 . . . . Ballistic Cannon 4 | . . . 20 1 . 11 4 . . . . Slashing Weapon 1 | . . . . . . . 4 9 14 18 11 Special Melee Weapon 1 | . . . . 3 . 2 2 2 . . 5 Peak Build Rating 51 | 7 9 9 23 36 41 37 51 49 41 42 42 Average Rating 25 | 6 8 8 21 25 28 33 35 44 36 41 34 On Entrance 26 | 6 7 9 9 23 36 26 33 45 42 38 42 Naked Turns . | . . . . . . . . . . . . Heaviest Build 48 | 14 30 30 44 48 48 48 39 32 26 24 25 Greatest Support 64 | 20 40 40 46 46 46 64 64 32 29 29 29 Greatest Overweight (x) 12 | . 1 . . 2 12 . 2 . 2 . 2 Average Overweight (x) . | . . . . . 1 . . . . . . Largest Inventory Capacity 15 | 8 15 15 15 15 15 15 15 10 10 10 10 Average Capacity 13 | 8 11 15 15 15 15 15 8 6 10 10 10 Most Carried 15 | 6 15 15 15 15 15 15 15 9 9 10 10 Average Carried 13 | 6 11 14 14 14 14 14 8 6 8 9 9 Final Capacity 15 | 8 15 15 15 15 15 15 5 10 10 10 10 Final Carried 15 | 6 15 15 15 15 15 15 5 9 9 10 9 Class Distribution -------------------- 69% | Mutant 16% | Bothacker-Mutant 12% | Scavenger-Mutant Dominant Class ---------------- Mutant | -10/Materials Mutant | -10/Mines Mutant | -9/Materials Mutant | -9/Storage Bothacker-Mutant | -9/Garrison Mutant | -8/Materials Scavenger-Mutant | -8/Garrison Mutant | -8/Materials Mutant | -8/Garrison Scavenger-Scout | -8/Materials Bothacker-Mutant | -8/Garrison Resources | -11 -10 -10 -9 -9 -9 -8 -8 -8 -8 -8 -8 ----------- Run | Yrd Mat Min Mat Sto Gar Mat Gar Mat Gar Mat Gar Matter Collected 4217 | 225 179 206 482 736 743 404 880 173 98 . 91 Remotely . | . . . . . . . . . . . . Salvage Created 5649 | 66 95 108 826 1515 894 485 583 715 221 . 141 Parts 365 | 4 13 13 56 85 56 33 31 45 20 . 9 Haulers Intercepted 9 | . 1 . 3 4 . . . 1 . . . Recyclers Shooed 3 | 1 . . 1 1 . . . . . . . Parts Field Recycled . | . . . . . . . . . . . . Retrieved Matter . | . . . . . . . . . . . . Parts Self-Destructed . | . . . . . . . . . . . . Prevented . | . . . . . . . . . . . . Kills | -11 -10 -10 -9 -9 -9 -8 -8 -8 -8 -8 -8 ------- Run | Yrd Mat Min Mat Sto Gar Mat Gar Mat Gar Mat Gar Combat Hostiles Destroyed 153 | . 3 4 24 21 31 19 20 12 15 . 4 Melee 18 | . . . . . . . 3 11 2 . 2 Guns 10 | . 3 4 . 1 . . 2 . . . . Cannons 71 | . . . 24 17 13 13 4 . . . . AOE 52 | . . . . 2 17 6 11 1 13 . 2 Classes Destroyed 17 | 2 3 . 5 1 2 1 2 . 1 . . Worker 7 | . . . 2 3 . . . 2 . . . Builder 4 | . 1 . . 1 . . . 2 . . . Tunneler 3 | 1 . 2 . . . . . . . . . Hauler 9 | . 1 . 3 4 . . . 1 . . . Recycler 4 | 1 . . . 3 . . . . . . . Mechanic 1 | . . . . . . 1 . . . . . Operator 1 | . . . . 1 . . . . . . . Watcher 4 | . . . 2 1 . . 1 . . . . Swarmer 46 | . 3 3 3 3 9 7 12 . 6 . . Cutter 7 | . . . . . . . 3 1 3 . . Grunt 49 | . . . 13 6 13 6 1 7 2 . 1 Brawler 7 | . . . . . 4 1 . . 2 . . Duelist 5 | . . . 2 . 1 2 . . . . . Sentry 28 | . . . 6 11 2 2 3 3 . . 1 Specialist 1 | . . . . . . . 1 . . . . Hunter 6 | . . . . . 2 1 . 1 . . 2 Programmer 3 | . . . . . . . . . 2 . 1 Best Kill Streak 6 | 2 4 3 6 4 5 5 5 5 6 . 2 Combat Bots Only 6 | . 2 3 5 4 5 4 4 4 6 . 2 Max Kills in Single Turn 4 | 1 1 2 2 2 3 3 4 1 2 . 3 Gunslinging . | . . . . . . . . . . . . Exploded 4 | . . . . 2 3 3 4 1 2 . 2 Melee 1 | . . . . . . . 1 1 1 . 1 Uniques/NPCs Destroyed 2 | . . 1 . 1 . . . . . . . YI-UF0 (-10/Mines) 01-MTF (-9/Storage) Combat | -11 -10 -10 -9 -9 -9 -8 -8 -8 -8 -8 -8 -------- Run | Yrd Mat Min Mat Sto Gar Mat Gar Mat Gar Mat Gar Hostile Shots Fired 577 | . 22 18 69 100 93 63 106 34 25 . 47 Missed 162 | . 9 6 15 30 18 16 27 16 13 . 12 Hits 415 | . 13 12 54 70 75 47 79 18 12 . 35 Melee 16 | . . . 4 . 4 6 . 1 1 . . Projectile 399 | . 13 12 50 70 71 41 79 17 11 . 35 AOE 9 | . . 7 . . . . 1 . 1 . . Critical Strikes 15 | . . . 1 3 4 3 . 1 2 . 1 Part Disruptions 14 | . . . . 13 . . . . 1 . . Damage Taken 6443 | . 264 277 732 1226 914 724 1128 335 327 . 516 Core 1018 | . 15 67 98 127 146 92 127 48 147 . 151 Absorbed by Shields 207 | . . . . . 159 . 31 . . . 17 Redirected to Shielding 34 | . . . . . . . 25 9 . . . Regen/Repaired (Parts) 136 | . . . 136 . . . . . . . . Core Remaining (%) 58 | 100 . 67 . . 7 . . . . . . Volleys Fired 346 | 5 13 9 70 88 54 40 55 1 10 . 1 Largest 2 | 2 2 2 2 2 2 2 2 1 1 . 1 Hottest 136 | 60 100 40 63 136 136 74 74 39 50 . 50 Shots Fired 590 | 10 25 18 140 144 96 58 87 1 10 . 1 Gun 102 | 10 24 18 . 27 . . 23 . . . . Cannon 447 | . . . 140 116 79 54 58 . . . . Launcher 40 | . . . . 1 17 4 6 1 10 . 1 Special 1 | . 1 . . . . . . . . . . Kinetic 366 | 5 14 18 140 54 . 54 81 . . . . Thermal 184 | 5 11 . . 89 79 . . . . . . Explosive 40 | . . . . 1 17 4 6 1 10 . 1 Electromagnetic . | . . . . . . . . . . . . Robot Hit Streak 18 | 2 4 9 9 9 9 10 12 1 8 . 18 Robot Miss Streak 5 | 3 3 1 4 4 4 5 5 . . . . Penetration Max . | . . . . . . . . . . . . Secondary Targets 1 | . 1 . . . . . . . . . . Max Gunslinging Chain 1 | . 1 . . . . . . . . . . Shots Hit Robots 453 | 4 13 14 92 92 37 49 86 38 17 . 11 Core Hits 269 | 3 6 8 39 43 38 32 42 17 24 . 17 Critical Kills 2 | . . . . 1 1 . . . . . . Critical Parts Destroyed . | . . . . . . . . . . . . Critical Strikes 18 | . . . 1 1 1 2 5 4 4 . . Meltdown 2 | . . . . 1 1 . . . . . . Blast 3 | . . . 1 . . 2 . . . . . Sever 13 | . . . . . . . 5 4 4 . . Melee Attacks 145 | . . . . 5 . 11 38 50 22 4 15 Impact . | . . . . . . . . . . . . Slashing 106 | . . . . . . . 31 39 22 4 10 Piercing . | . . . . . . . . . . . . Sneak Attacks 28 | . . . . 5 . 5 6 10 . . 2 Combat Hostiles 6 | . . . . . . . 4 2 . . . Follow-up Attacks 5 | . . . . . . . . . 5 . . Damage Inflicted 14740 | 46 222 224 1858 1891 1928 1409 3379 1639 1542 . 602 Guns 746 | 46 173 207 . 214 . . 106 . . . . Cannons 5920 | . . . 1801 1551 837 886 845 . . . . Explosions 4003 | . 49 . . 95 1091 523 501 63 1264 . 417 Melee 3924 | . . . . . . . 1901 1566 272 . 185 Ramming 147 | . . 17 57 31 . . 26 10 6 . . Kinetic 4433 | . 83 207 1801 505 . 886 951 . . . . Thermal 2233 | 46 90 . . 1260 837 . . . . . . Explosive 4003 | . 49 . . 95 1091 523 501 63 1264 . 417 Electromagnetic . | . . . . . . . . . . . . Impact . | . . . . . . . . . . . . Slashing 3924 | . . . . . . . 1901 1566 272 . 185 Piercing . | . . . . . . . . . . . . Highest Corruption 9 | . . . . 9 9 . . . 1 1 2 Average Corruption 7 | . . . . 8 9 . . . 1 1 1 Corruption Purged . | . . . . . . . . . . . . Corruption Blocked . | . . . . . . . . . . . . Effects 111 | . . . . 13 95 . . . 2 . 1 Message Errors 31 | . . . . 5 25 . . . 1 . . Matter Fused 21 | . . . . . 20 . . . . . 1 Heat Flow Errors 12 | . . . . 2 10 . . . . . . Energy Discharges 14 | . . . . 1 13 . . . . . . Parts Rejected 1 | . . . . . 1 . . . . . . Data Loss (minor) 16 | . . . . 2 13 . . . 1 . . Data Loss (major) 3 | . . . . . 3 . . . . . . Misfires 10 | . . . . 3 7 . . . . . . Weapon Failures 3 | . . . . . 3 . . . . . . Overload Shots . | . . . . . . . . . . . . Overflow Damage 434 | . 2 . 7 . 3 11 193 134 84 . . Projectiles 39 | . . . 7 . 3 7 22 . . . . Explosions 90 | . 2 . . . . 4 . . 84 . . Melee 305 | . . . . . . . 171 134 . . . Knockbacks 34 | . . . 15 2 . 5 12 . . . . Impact . | . . . . . . . . . . . . Kinetic 31 | . . . 13 2 . 5 11 . . . . Secondary 3 | . . . 2 . . . 1 . . . . Self-Inflicted Damage 634 | . 100 . . . 71 . 150 67 129 . 117 Shots 25 | . 1 . . . 4 . 8 1 6 . 5 Rammed 37 | . . 3 10 9 . . 13 1 1 . . Targets Rammed 40 | . . 4 11 10 . . 13 1 1 . . Kicked . | . . . . . . . . . . . . Crushed 3 | . . 1 1 1 . . . . . . . Highest Temperature 604 | 20 20 . 132 391 604 228 174 7 . . . Average Temperature 88 | 20 11 . 29 76 148 65 42 7 . . . Received Heat Transfer 1314 | . 12 . 261 168 102 225 369 99 . . 78 Effects 25 | . . . . . 25 . . . . . . Shutdowns 2 | . . . . . 2 . . . . . . Energy Bleed 4 | . . . . . 4 . . . . . . Interference 5 | . . . . . 5 . . . . . . Matter Decay 4 | . . . . . 4 . . . . . . Short Circuit 2 | . . . . . 2 . . . . . . Damage (minor) 1 | . . . . . 1 . . . . . . Damage (major) 6 | . . . . . 6 . . . . . . Damage (core) 1 | . . . . . 1 . . . . . . Siege Activations . | . . . . . . . . . . . . Martial Activations . | . . . . . . . . . . . . Shielding Activations . | . . . . . . . . . . . . Robots Disrupted . | . . . . . . . . . . . . Combat Hostiles . | . . . . . . . . . . . . Robots Corrupted . | . . . . . . . . . . . . Combat Hostiles . | . . . . . . . . . . . . Parts Fried . | . . . . . . . . . . . . Impact Corruptions . | . . . . . . . . . . . . Robots Melted 2 | . . . . 1 1 . . . . . . Combat Hostiles 2 | . . . . 1 1 . . . . . . Parts Melted 10 | . . . . 5 5 . . . . . . Heat Transferred 3926 | 100 200 . . 2183 1443 . . . . . . Parts Sabotaged . | . . . . . . . . . . . . Parts Stolen . | . . . . . . . . . . . . Parts Stripped . | . . . . . . . . . . . . Power Chain Reactions . | . . . . . . . . . . . . Alert | -11 -10 -10 -9 -9 -9 -8 -8 -8 -8 -8 -8 ------- Run | Yrd Mat Min Mat Sto Gar Mat Gar Mat Gar Mat Gar Maximum Alert Level 4 | . . . 2 1 4 3 3 2 2 1 1 Low Security (%) 48 | 100 100 100 34 82 4 . . 78 21 . 6 Level 1 18 | . . . 62 17 4 . . 10 53 100 93 Level 2 19 | . . . 3 . 47 76 63 10 25 . . Level 3 9 | . . . . . 28 23 36 . . . . Level 4 3 | . . . . . 14 . . . . . . Level 5 . | . . . . . . . . . . . . High Security . | . . . . . . . . . . . . Max Security . | . . . . . . . . . . . . Peak Influence 1468 | 10 55 60 426 274 1468 850 924 450 530 259 294 Initial 715 | . . . . 100 . 715 429 450 85 258 146 Average 294 | 4 10 3 207 82 689 650 633 151 285 240 232 Influence Increases 5998 | 10 185 80 867 763 1548 585 635 594 485 18 228 Destroy 0b10 Robot/C 3180 | . 60 60 540 400 640 400 420 280 300 . 80 Destroy 0b10 Robot/NC 180 | 10 10 10 35 65 . 5 20 25 . . . Destroy Leader 584 | . 12 10 160 170 20 80 30 82 20 . . Allied During Kill 29 | . . . 5 . 4 3 1 15 . . 1 Trap Triggered on 0b10 20 | . . . . 20 . . . . . . . Successful Hack 151 | . 25 . 11 36 14 6 7 10 28 . 14 Select Force Hacks 60 | . . . 30 30 . . . . . . . Disable Machine 195 | . 15 . 60 30 15 30 15 . 15 15 . Anti-Garrison Action 900 | . . . . . 750 . 50 . . . 100 Destroy Structure 414 | . 33 . 11 12 105 31 92 17 92 3 18 Partial Spotted 45 | . . . . . . 15 . 30 . . . Lose Combat Pursuer 240 | . 30 . 15 . . 15 . 135 30 . 15 Influence Decreases 5704 | 10 185 80 629 1001 80 1393 371 1386 87 322 160 Entered New Map 1995 | . . . . 138 . 753 231 474 47 272 80 Time Decay 1909 | 10 175 80 457 645 . 270 . 222 . 50 . Lost Part 261 | . 10 . 10 11 40 10 90 20 30 . 40 Lost Ally 282 | . . . 12 . 40 60 50 70 10 . 40 Purge Threat 1257 | . . . 150 207 . 300 . 600 . . . Squads Dispatched 19 | . 1 . 4 2 . 6 . 6 . . . Investigation 5 | . . . 2 1 . . . 2 . . . Extermination . | . . . . . . . . . . . . Reinforcement 9 | . 1 . 2 1 . 2 . 3 . . . Assault 1 | . . . . . . 1 . . . . . Garrison 4 | . . . . . . 3 . 1 . . . Intercept . | . . . . . . . . . . . . Searches Triggered . | . . . . . . . . . . . . Construction Impeded 1 | . . . . . . . . 1 . . . Haulers Reinforced . | . . . . . . . . . . . . Active Scanning Responses . | . . . . . . . . . . . . Cargo Convoy Interrupts . | . . . . . . . . . . . . Alert ID Control Effect 1 | . . . . . . . . . . . 1 Stealth | -11 -10 -10 -9 -9 -9 -8 -8 -8 -8 -8 -8 --------- Run | Yrd Mat Min Mat Sto Gar Mat Gar Mat Gar Mat Gar Distress Signals 12 | . 2 . 4 1 . 1 . 4 . . . Communications Jammed . | . . . . . . . . . . . . Distress Signals . | . . . . . . . . . . . . Times Spotted 223 | . 5 6 41 29 26 33 20 36 14 2 11 Peak Tracking Total 7 | . 7 2 6 3 5 5 4 7 5 . 5 Tactical Retreats 11 | . 1 . 1 . . 1 . 5 2 . 1 Traps | -11 -10 -10 -9 -9 -9 -8 -8 -8 -8 -8 -8 ------- Run | Yrd Mat Min Mat Sto Gar Mat Gar Mat Gar Mat Gar Traps Triggered 19 | . . . 1 5 5 . 5 1 . . 2 Indirectly . | . . . . . . . . . . . . Trap Hack Attempts 37 | . . . . 37 . . . . . . . Triggered . | . . . . . . . . . . . . Disarmed . | . . . . . . . . . . . . Reprogrammed 7 | . . . . 7 . . . . . . . Reused 2 | . . . . 2 . . . . . . . Traps Extracted . | . . . . . . . . . . . . Installed . | . . . . . . . . . . . . Triggered 2 | . . . . 2 . . . . . . . Machines | -11 -10 -10 -9 -9 -9 -8 -8 -8 -8 -8 -8 ---------- Run | Yrd Mat Min Mat Sto Gar Mat Gar Mat Gar Mat Gar Machines Disabled 18 | . 1 . 4 2 4 2 2 . 1 1 1 Max in Single Turn 1 | . 1 . 1 1 1 1 1 . 1 1 1 Garrison Relay 5 | . . . . . 3 . 1 . . . 1 Machines Repaired . | . . . . . . . . . . . . Machines Dismantled . | . . . . . . . . . . . . Machines Sabotaged . | . . . . . . . . . . . . Overloaded Fab Kills . | . . . . . . . . . . . . Hacking | -11 -10 -10 -9 -9 -9 -8 -8 -8 -8 -8 -8 --------- Run | Yrd Mat Min Mat Sto Gar Mat Gar Mat Gar Mat Gar Machines Accessed 52 | . 5 1 10 12 2 5 3 8 2 1 3 Terminals 42 | . 5 1 7 9 2 4 3 6 2 . 3 Fabricators . | . . . . . . . . . . . . Repair Stations 1 | . . . 1 . . . . . . . . Recycling Units 3 | . . . 1 2 . . . . . . . Scanalyzers 2 | . . . 1 . . . . 1 . . . Garrison Access 4 | . . . . 1 . 1 . 1 . 1 . Total Hacks 147 | . 15 3 38 34 3 9 3 30 4 1 7 Successful 69 | . 10 . 21 18 1 3 1 11 2 1 1 Failed 78 | . 5 3 17 16 2 6 2 19 2 . 6 Catastrophic 15 | . . 1 2 3 1 3 1 1 1 . 2 Database Lockouts . | . . . . . . . . . . . . Manual 96 | . 14 3 28 23 1 6 . 20 . . 1 Terminals 131 | . 15 3 32 30 3 8 3 26 4 . 7 Fabricators . | . . . . . . . . . . . . Repair Stations 2 | . . . 2 . . . . . . . . Recycling Units 4 | . . . 1 3 . . . . . . . Scanalyzers 6 | . . . 3 . . . . 3 . . . Garrison Access 4 | . . . . 1 . 1 . 1 . 1 . Terminal Hacks 23 | . 3 . 5 5 1 1 1 4 2 . 1 Robot Analysis 5 | . 2 . 1 1 . . . 1 . . . Prototype ID Bank 1 | . 1 . . . . . . . . . . Open Door 3 | . . . . 2 . . 1 . . . . Emergency Access Points 1 | . . . . . 1 . . . . . . Terminal Index 1 | . . . 1 . . . . . . . . Alert Level 1 | . . . 1 . . . . . . . . Unreport Threat 7 | . . . 1 2 . 1 . 3 . . . Zone Layout 1 | . . . 1 . . . . . . . . Garrison Registry 1 | . . . . . . . . . 1 . . Patrol Navigation 1 | . . . . . . . . . . . 1 Security Stations 1 | . . . . . . . . . 1 . . Fabricator Hacks . | . . . . . . . . . . . . Repair Station Hacks 2 | . . . 2 . . . . . . . . Scan Component 1 | . . . 1 . . . . . . . . Repair 1 | . . . 1 . . . . . . . . Recycling Unit Hacks . | . . . . . . . . . . . . Scanalyzer 4 | . . . 3 . . . . 1 . . . Insert Component 2 | . . . 1 . . . . 1 . . . Analyze 2 | . . . 2 . . . . . . . . Garrison Access Hacks 4 | . . . . 1 . 1 . 1 . 1 . Unlock Access 4 | . . . . 1 . 1 . 1 . 1 . Unauthorized Hacks 36 | . 7 . 11 12 . 1 . 5 . . . Terminals 32 | . 7 . 10 9 . 1 . 5 . . . Assimilate 1 | . . . . . . . . 1 . . . Botnet 8 | . 2 . 3 2 . . . 1 . . . Operators 2 | . . . . . . 1 . 1 . . . Skim 21 | . 5 . 7 7 . . . 2 . . . Fabricators . | . . . . . . . . . . . . Repair Stations . | . . . . . . . . . . . . Recycling Units 4 | . . . 1 3 . . . . . . . Reject 1 | . . . . 1 . . . . . . . Mask 1 | . . . . 1 . . . . . . . Tunnel 2 | . . . 1 1 . . . . . . . Scanalyzers . | . . . . . . . . . . . . Garrison Access . | . . . . . . . . . . . . Data Cores Recovered . | . . . . . . . . . . . . Used . | . . . . . . . . . . . . Hacking Detections 43 | . 4 1 9 9 2 4 3 7 1 . 3 Full Trace Events 5 | . . . . 3 . . . 1 . . 1 Feedback Events . | . . . . . . . . . . . . Feedback Blocked . | . . . . . . . . . . . . Robot Schematics Acquired . | . . . . . . . . . . . . Robots Built . | . . . . . . . . . . . . Authchips . | . . . . . . . . . . . . Time . | . . . . . . . . . . . . Total Robot Build Rating . | . . . . . . . . . . . . Part Schematics Acquired 1 | . . . 1 . . . . . . . . Parts Built . | . . . . . . . . . . . . Authchips . | . . . . . . . . . . . . Time . | . . . . . . . . . . . . Total Part Build Rating . | . . . . . . . . . . . . Parts Repaired 1 | . . . 1 . . . . . . . . Time 36 | . . . 36 . . . . . . . . Parts Recycled . | . . . . . . . . . . . . Recycled Matter . | . . . . . . . . . . . . Retrieved Matter . | . . . . . . . . . . . . Retrieved Components . | . . . . . . . . . . . . Parts Scanalyzed 2 | . . . 1 . . . . 1 . . . Part Schematics Acquired 1 | . . . 1 . . . . . . . . Parts Damaged . | . . . . . . . . . . . . Bothacking | -11 -10 -10 -9 -9 -9 -8 -8 -8 -8 -8 -8 ------------ Run | Yrd Mat Min Mat Sto Gar Mat Gar Mat Gar Mat Gar Used RIF Installer 3 | . . . . . 1 . 1 . 1 . . Patrol Navigation 1 | . . . . . . . 1 . . . . Alert ID Control 1 | . . . . . . . . . 1 . . Robots Hacked 17 | . . . . 1 . 5 4 4 . . 3 Non-combat 2 | . . . . . . 1 . 1 . . . Combat 15 | . . . . 1 . 4 4 3 . . 3 Robot Hacks Applied 20 | . . . . 1 . 7 4 5 . . 3 parse_system 1 | . . . . 1 . . . . . . . purge_threat 2 | . . . . . . 1 . 1 . . . find_garrison 2 | . . . . . . 1 . 1 . . . disable_weapons 1 | . . . . . . . 1 . . . . go_dormant 1 | . . . . . . . . 1 . . . overwrite_iff 6 | . . . . . . 3 2 . . . 1 formatsys_low 2 | . . . . . . 1 . 1 . . . formatsys_high 5 | . . . . . . 1 1 1 . . 2 Relay Couplers Released 20 | . . . . . 12 . 3 . . . 5 Machine Destruction 20 | . . . . . 12 . 3 . . . 5 Attached 10 | . . . . . . 3 2 1 . . 4 Fabnet Peak Effective % . | . . . . . . . . . . . . Robots Rewired 3 | . . . . . 3 . . . . . . Allies Hacked . | . . . . . . . . . . . . Hacks Repelled . | . . . . . . . . . . . . Allies | -11 -10 -10 -9 -9 -9 -8 -8 -8 -8 -8 -8 -------- Run | Yrd Mat Min Mat Sto Gar Mat Gar Mat Gar Mat Gar Total Allies 22 | . . 3 . . 3 5 5 3 . . 3 Largest Group 3 | . . 3 3 . 3 2 2 2 1 . 2 Highest-Rated Group 45 | . . 40 40 . 15 31 45 45 10 . 31 Highest-Rated Ally 25 | . . 16 16 . 5 16 25 25 10 . 16 Total Orders 14 | . . . . . . . 6 4 4 . . STAY 7 | . . . . . . . 3 2 2 . . FOLLOW 7 | . . . . . . . 3 2 2 . . Ally Attacks 72 | . . . 24 . 11 10 4 12 . . 11 Total Damage 1103 | . . . 252 . 52 166 92 385 . . 156 Kills 10 | . . . 3 . 2 1 1 2 . . 1 Allies Corrupted . | . . . . . . . . . . . . Allies Melted . | . . . . . . . . . . . . Intel | -11 -10 -10 -9 -9 -9 -8 -8 -8 -8 -8 -8 ------- Run | Yrd Mat Min Mat Sto Gar Mat Gar Mat Gar Mat Gar Active Infowar (turns) 7676 | 5 862 1131 36 2775 78 578 1105 474 289 108 235 Optics 2782 | . . . . . . 571 1105 474 289 108 235 Sensors 164 | . . . . . . . 6 . . 91 67 Terrain 150 | . . . . . . . . . . 75 75 Seismic 5150 | 5 862 1131 36 2775 78 263 . . . . . Robot Analysis Total 5 | . 2 . 1 1 . . . 1 . . . Derelict Logs Recovered 1 | . . 1 . . . . . . . . . Drone Launches . | . . . . . . . . . . . . Drone Recoveries . | . . . . . . . . . . . . Exploration | -11 -10 -10 -9 -9 -9 -8 -8 -8 -8 -8 -8 ------------- Run | Yrd Mat Min Mat Sto Gar Mat Gar Mat Gar Mat Gar Turns Passed 12969 | 24 862 1132 1758 3754 2642 586 1105 474 289 108 235 Spaces Moved 6362 | 7 472 673 677 1522 880 233 694 566 302 183 153 Core 1 | . . . . . 1 . . . . . . Treads 4530 | . 240 673 677 1522 867 233 251 . . . 67 Legs 239 | 7 232 . . . . . . . . . . Wheels . | . . . . . . . . . . . . Hover 1592 | . . . . . 12 . 443 566 302 183 86 Flight . | . . . . . . . . . . . . Fastest Speed 38 | 120 120 160 160 160 96 150 45 38 46 48 48 Average Speed 153 | 120 141 160 160 190 268 152 93 44 60 48 106 Slowest Speed 650 | 120 190 160 160 320 650 160 240 51 150 48 240 Overloaded Moves 10 | . . . . . . . . 10 . . . Propulsion Burnouts . | . . . . . . . . . . . . Robots Hopped . | . . . . . . . . . . . . Potential Cave-ins 2 | . . . . . . . . 2 . . . Cave-ins Triggered . | . . . . . . . . . . . . Exploration Rate (%) 54 | 2 77 96 68 95 82 25 70 49 46 21 17 Regions Visited 11 Branch Regions 2 Pre-discovered Areas 9 | . 3 . 5 1 . . . . . . . Known Exits Taken 7 | . 1 1 1 1 . 1 . 1 . 1 . Unknown Exits Taken 1 | 1 . . . . . . . . . . . Scrap Searched 1 | . . 1 . . . . . . . . . Spaces Dug 43 | . 1 . . . 10 . . 9 20 3 . Terrain Destroyed 357 | . 49 . 3 6 69 34 72 27 67 3 27 Melee 12 | . . . . . . . . 9 . 3 . Projectile 16 | . 1 . 3 1 2 9 . . . . . AOE 329 | . 48 . . 5 67 25 72 18 67 . 27 Terrain Rammed . | . . . . . . . . . . . . Walls Destroyed . | . . . . . . . . . . . . Machines Disabled . | . . . . . . . . . . . . Actions | -11 -10 -10 -9 -9 -9 -8 -8 -8 -8 -8 -8 --------- Run | Yrd Mat Min Mat Sto Gar Mat Gar Mat Gar Mat Gar Total 8735 | 12 643 708 1212 2226 1069 394 991 720 358 197 205 Wait 1340 | . 125 18 411 464 43 74 111 73 12 . 9 Move 6354 | 6 471 672 676 1522 879 233 693 566 301 182 153 Hop . | . . . . . . . . . . . . Pick Up 80 | . 16 1 11 19 7 5 6 6 2 4 3 Fast Attach 79 | 1 1 . 7 24 9 6 14 10 4 1 2 Attach 27 | . 2 1 2 5 6 2 5 2 . . 2 Detach 16 | . 1 . 2 6 4 1 1 1 . . . Swap 85 | . 5 1 4 14 19 15 5 5 8 2 7 Drop 104 | . 9 2 18 32 11 7 10 5 3 4 3 Fire 346 | 5 13 9 70 88 54 40 55 1 10 . 1 Melee 139 | . . . . 5 . 11 38 50 17 4 14 Ram 2 | . . . . . . . . 1 1 . . Kick . | . . . . . . . . . . . . Crush 38 | . . 4 11 10 . . 13 . . . . Escape Stasis 57 | . . . . . 8 . 38 . . . 11 Rewire 31 | . . . . . 29 . 2 . . . . Trap 37 | . . . . 37 . . . . . . . Miscellaneous . | . . . . . . . . . . . . Route ------- -11/Scrapyard -10/Materials (discovered 5 exits: *Mat x3 / *Min / Sub) -10/Mines (discovered 4 exits: *Mat x2 / [*Exi] / *Sub) -9/Materials (discovered 6 exits: *Mat x3 / [*Min] / *Sto x2) -9/Storage (discovered 2 exits: *Mat / Gar) -9/Garrison (discovered 3 exits: *Mat x3) -8/Materials -8/Garrison (discovered 3 exits: *Mat x3) -8/Materials -8/Garrison (discovered 4 exits: [*Fac x3] / *Mat) -8/Materials (discovered 2 exits: [*Fac] / Gar) -8/Garrison History --------- Turn | Location | Event 17 | -11/Scrapyard | Discovered new exit (range 3) 25 | -11/Scrapyard | Entered Materials 94 | -10/Materials | Met 8R-AWN 162 | -10/Materials | Discovered new exit (range 8) 259 | -10/Materials | Discovered new exit (range 16) 324 | -10/Materials | Build established: Mutant 363 | -10/Materials | Discovered new exit (range 14) 502 | -10/Materials | Learned location of Subcaves (-10) 560 | -10/Materials | Identified exit to Subcaves 560 | -10/Materials | Identified exit to Materials 608 | -10/Materials | Learned location of Recycling (-9) 645 | -10/Materials | Identified exit to Mines 674 | -10/Materials | Learned location of Mines (-10) 692 | -10/Materials | Learned location of 1 exit from Recycling 702 | -10/Materials | Learned 2 Mines zone layouts 720 | -10/Materials | Learned 2 Storage zone layouts 747 | -10/Materials | Learned Storage garrison access intel 785 | -10/Materials | Loaded intel: 8 terminal locations 887 | -10/Materials | Entered Mines 889 | -10/Mines | Followed 8R-AWN into the Mines 1049 | -10/Mines | Discovered new exit (range 5) 1127 | -10/Mines | Found a Scrap Suit stashed away for nefarious purposes 1133 | -10/Mines | Found Scrap Suit 1334 | -10/Mines | Discovered exit to Materials (range 10) 1403 | -10/Mines | YI-UF0 nonchalantly dropped a Grenade Launcher on the ground 1417 | -10/Mines | Destroyed YI-UF0 1541 | -10/Mines | Discovered exit to Materials (range 14) 1557 | -10/Mines | Assisted by bots powering up and referring to "LRC-V3" 1812 | -10/Mines | Discovered exit to Subcaves (range 7) 2019 | -10/Mines | Entered Materials 2019 | -9/Materials | Accompanied by 3 allies 2019 | -9/Materials | Evolved 2 slots: Utility x2 2020 | -9/Materials | Identified exit to Storage 2762 | -9/Materials | Discovered new exit (range 16) 2913 | -9/Materials | Discovered new exit (range 16) 3276 | -9/Materials | Discovered exit to Storage (range 5) 3342 | -9/Materials | Learned location of Zion (-6) 3407 | -9/Materials | Learned Recycling recycling unit intel 3420 | -9/Materials | Repaired Broken Lgt. Cannon 3454 | -9/Materials | Discovered new exit (range 16) 3462 | -9/Materials | Identified exit to Materials 3507 | -9/Materials | Learned location of 1 exit from Recycling 3541 | -9/Materials | Loaded intel: 11 terminal locations 3577 | -9/Materials | Learned Storage terminal intel 3631 | -9/Materials | Learned 4 Recycling zone layouts 3724 | -9/Materials | Learned Storage stockpile data 3777 | -9/Materials | Entered Storage 3780 | -9/Storage | Loaded intel: 15 terminal locations 3781 | -9/Storage | Loaded intel: 1 garrison access location 4202 | -9/Storage | Found Prototype Launcher 4202 | -9/Storage | Identified Scatter Rocket Array 5140 | -9/Storage | Met 01-MTF 5241 | -9/Storage | Discovered exit to Materials (range 16) 5374 | -9/Storage | Build established: Scavenger-Mutant 6216 | -9/Storage | Build established: Mutant 7148 | -9/Storage | Core integrity fell below 50% 7162 | -9/Storage | Destroyed 01-MTF 7531 | -9/Storage | Identified exit to Garrison 7531 | -9/Storage | Entered Garrison 7615 | -9/Garrison | Triggered checkpoint 7629 | -9/Garrison | Garrison Relay disabled 7707 | -9/Garrison | Triggered checkpoint 7815 | -9/Garrison | Triggered checkpoint 7875 | -9/Garrison | Triggered checkpoint 7981 | -9/Garrison | Core integrity fell below 20% 8144 | -9/Garrison | Installed Relay Interface Framework 8454 | -9/Garrison | Discovered exit to Materials (range 10) 8693 | -9/Garrison | Triggered checkpoint 8743 | -9/Garrison | Lost 3 allies 8744 | -9/Garrison | Garrison Relay disabled 9052 | -9/Garrison | Build established: Bothacker-Mutant 9420 | -9/Garrison | Triggered checkpoint 9506 | -9/Garrison | Discovered exit to Materials (range 15) 9673 | -9/Garrison | Triggered checkpoint 9793 | -9/Garrison | Garrison Relay disabled 9898 | -9/Garrison | Triggered checkpoint 9988 | -9/Garrison | Discovered exit to Materials (range 13) 10173 | -9/Garrison | Entered Materials 10173 | -8/Materials | Evolved 2 slots: Propulsion x1, Utility x1 10433 | -8/Materials | Garrison activated, responded to threat 10519 | -8/Materials | Lost 3 allies 10573 | -8/Materials | First assault squad dispatched 10699 | -8/Materials | Build established: Mutant 10759 | -8/Materials | Identified exit to Garrison 10759 | -8/Materials | Entered Garrison 10759 | -8/Garrison | Accompanied by 1 ally 10862 | -8/Garrison | Expanded RIF knowledge: Patrol Navigation 10899 | -8/Garrison | Triggered checkpoint 10993 | -8/Garrison | Lost 6 parts (1p3n2w) 11159 | -8/Garrison | Triggered checkpoint 11384 | -8/Garrison | Build established: Scavenger-Mutant 11427 | -8/Garrison | Discovered new exit (range 10) 11449 | -8/Garrison | Triggered checkpoint 11466 | -8/Garrison | Triggered checkpoint 11511 | -8/Garrison | Discovered new exit (range 11) 11655 | -8/Garrison | Triggered checkpoint 11710 | -8/Garrison | Discovered new exit (range 17) 11722 | -8/Garrison | Garrison Relay disabled 11796 | -8/Garrison | Rescued a captive Derelict 11798 | -8/Garrison | Rescued a captive Derelict 11864 | -8/Garrison | Entered Materials 11864 | -8/Materials | Accompanied by 2 allies 12068 | -8/Materials | Build established: Bothacker-Mutant 12338 | -8/Materials | Identified exit to Garrison 12338 | -8/Materials | Entered Garrison 12338 | -8/Garrison | Accompanied by 1 ally 12349 | -8/Garrison | Expanded RIF knowledge: Alert ID Control 12378 | -8/Garrison | Build established: Mutant 12398 | -8/Garrison | Core integrity fell below 50% 12398 | -8/Garrison | Triggered checkpoint 12501 | -8/Garrison | Discovered new exit (range 34) 12501 | -8/Garrison | Discovered new exit (range 55) 12501 | -8/Garrison | Discovered new exit (range 62) 12501 | -8/Garrison | Discovered new exit (range 53) 12515 | -8/Garrison | Triggered checkpoint 12606 | -8/Garrison | Learned Factory security intel 12610 | -8/Garrison | Triggered checkpoint 12627 | -8/Garrison | Entered Materials 12681 | -8/Materials | Identified exit to Garrison 12712 | -8/Materials | Discovered new exit (range 17) 12735 | -8/Materials | Entered Garrison 12769 | -8/Garrison | Triggered checkpoint 12796 | -8/Garrison | Garrison Relay disabled 12848 | -8/Garrison | Lost 3 parts (1p2n) 12935 | -8/Garrison | Core integrity fell below 20% 12970 | -8/Garrison | Destroyed by H-55 Commando with Gauss Rifle Last Messages --------------- 12876_ Discarded Relay Coupler [NC]. 12918_ Triggered Alarm Trap. 12918_ An alarm sounds. 12919_ Connecting with Garrison Terminal... 12928_ Slug penetrates Wall. 12933_ Trooper 3b destroyed. 12933_ Penetrated by Slug. 12933_ Hvy. Missile Launcher destroyed. 12934_ H-55 Commando destroyed. 12934_ Defender 3c destroyed. 12934_ H-55 Commando destroyed. 12935_ C-30 ARC bursts open, deploying its payload. 12935_ H-55 Commando unfolds itself. 12936_ Machine disabled. 12937_ Slug penetrates Machine. 12937_ Machine disabled. 12961_ Slug penetrates Wall. 12963_ P-60 Hacker destroyed. 12966_ Acquired 4 matter. 12970_ Penetrated by Slug. Map ----- +----------------------------------------------------+ | ?????????????????????????????????????????????????? | | ?????????????????????????????????????????????????? | | ?????????????????????????????????????????????????? | | ?????????????????????????????????????????????????? | | ?????????????????????????????????????????????????? | | ???????????????????????????????????? ??????????? | | ???????????????????????????????????? ??????????? | | ???????????????????????????????????? #?????????? | | ???????????????????????????????????? ?????????? | | ???????????????????????????????????# ?????????? | | ???????????????????????????????????# ?????????? | | ???????????????????????????????????# #?????#???? | | ???????????????????????????????????# ##??? ##??? | | ???????????????????????????????????" ??? ???? | | ??????????????????????????????###??" ??? ???? | | ?????????????????????????????# ##?" ? ????? | | ????????????????????????????? #?" ?????? | | ?????????????????????#####??? ### #? ??????? | | ?????????????????????#"T #### " ## #???? | | ?????????????????????# [ ! [%" | | ?????????????????????##### * %" | | ?????????????????????????# # ##[ | | ?????????????????????????# # ## #?????????? | | ?????????????????????????# #?### ### #?????????? | | ???????????????###########h #?????#?# #?????????? | | ???????????????#! * @ #???????# #?????????? | | ?????????????### ######### #???????# #?????????? | | ?????????????# #???????# #???????# #?????????? | | ?????????????# #???????# ######### #?????????? | | ?????????????# #???????# #?????????? | | ?????????????# #???????# #?????????? | | ?????????????### #???????# ########T###?????????? | | ???????????????# #???????# #??????###???????????? | | ???????????????# ###### ## #????????????????????? | | ???????????????# ! *% + + #????????????????????? | | ???????????????### !=##### #????????????????????? | | ????????????????#" """#??# #????????????????????? | | ????????????????#######??# #????????????????????? | | ?????????????????????????# #????????????????????? | | ?????????????????????????# #????????????????????? | | ?????????????????????????# #????????????????????? | | ????????????????########## #????????????????????? | | ????????????????# #????????????????????? | | ????????????????# #????????????????????? | | ????????????????# ##### ###????????????????????? | | ????????????????# #??## #??????????????????????? | | ????????????????#####??#" #??????????????????????? | | ???????????????????????#T #??????????????????????? | | ???????????????????????#""#??????????????????????? | | ???????????????????????####??????????????????????? | +----------------------------------------------------+ Best States ------------- Heat Dissipation 50 Energy Generation 21 Energy Capacity 280 Matter Stores 300 Matter Capacity 300 Sight Range 20 Robot Scan Range 16 Terrain Scan Range 16 Terrain Scan Density 10 Armor Coverage 450 Core Shielding 20 Evasion (%) 56 Recoil Reduction 3 Salvage Targeting 1 Offensive Hacking 10 Relay Coupler Types 3 Relay Coupler Value 49 Item Schematics ----------------- Imp. Flight Unit | -9/Materials | Scanalyzed Robot Schematics ------------------ None Fabricated ------------ Nothing Repaired ---------- Lgt. Cannon | 56% | -9/Materials | Broken Alien Tech Used ----------------- None Achievements -------------- None Challenges ------------ None Game ------ Seed PhysicsTitaniumTerminator Manual? 0 Play Time 01:23:51 Cumulative 355.3 hours Start 2025.05.06 @ 17:23:02 End 2025.05.06 @ 18:49:12 Sessions 1 Manual Loads 0 Difficulty Rogue Special Mode None Game No. 408 Rogue 408 Adventurer 0 Explorer 0 Win Type - Total 11 Types 8/0/2/1/0/0/0/0/0/0 Lore% 77 Gallery% 79 Achievement% 76 Wizard Run 0 Options --------- Layout 0 ASCII 0 Keyboard 0 Movement Numpad Keybinds 0 Fullscreen 2 Font 18/X11 Map View 76x50 Zoom Use 0% Tactical HUD 1 Map Filters NONE Filters NONE Steam 1 RUN: 2233b631-39df-4a91-90e1-1b4684608859